[Event "Early-Titled-Tuesday-Blitz-April-02-2024"]
[Site "Chess.com"]
[Date "2024.04.02"]
[Round "3"]
[White "NewBornNow"]
[Black "JoshuaGK27"]
[Result "1/2-1/2"]
[WhiteElo "2813"]
[BlackElo "2536"]
[TimeControl "180+1"]
[EndTime "8:29:10 PDT"]
[Termination "Game drawn by agreement"]

1. e4 {[%clk 0:02:57.9]} 1... c5 {[%clk 0:02:59]} 2. Nf3 {[%clk 0:02:56.7]} 2...
d6 {[%clk 0:02:59]} 3. d4 {[%clk 0:02:56.8]} 3... cxd4 {[%clk 0:02:59.9]} 4.
Nxd4 {[%clk 0:02:56.9]} 4... Nf6 {[%clk 0:03:00.2]} 5. Bd3 {[%clk 0:02:55.9]}
5... Nc6 {[%clk 0:02:55]} 6. Nxc6 {[%clk 0:02:54.7]} 6... bxc6 {[%clk 0:02:54]}
7. O-O {[%clk 0:02:54.2]} 7... g6 {[%clk 0:02:52.9]} 8. b3 {[%clk 0:02:54.1]}
8... Bg7 {[%clk 0:02:53.1]} 9. Bb2 {[%clk 0:02:53.8]} 9... O-O {[%clk
0:02:53.6]} 10. Nc3 {[%clk 0:02:53.9]} 10... a5 {[%clk 0:02:49.9]} 11. Na4
{[%clk 0:02:53.2]} 11... Ba6 {[%clk 0:02:45]} 12. c4 {[%clk 0:02:51.5]} 12...
Qc7 {[%clk 0:02:42.3]} 13. Qe2 {[%clk 0:02:49.4]} 13... Nd7 {[%clk 0:02:34.2]}
14. Bxg7 {[%clk 0:02:46.5]} 14... Kxg7 {[%clk 0:02:35.1]} 15. Rac1 {[%clk
0:02:44.7]} 15... Ne5 {[%clk 0:02:17.1]} 16. f4 {[%clk 0:02:41.8]} 16... Nd7
{[%clk 0:02:00.2]} 17. Kh1 {[%clk 0:02:21.4]} 17... Nb6 {[%clk 0:01:16.9]} 18.
Nc3 {[%clk 0:02:12.7]} 18... c5 {[%clk 0:00:49]} 19. e5 {[%clk 0:02:06.6]} 19...
Bb7 {[%clk 0:00:44.6]} 20. Be4 {[%clk 0:02:01.5]} 20... dxe5 {[%clk 0:00:21.4]}
21. Bxb7 {[%clk 0:01:59.2]} 21... Qxb7 {[%clk 0:00:21.1]} 22. Qxe5+ {[%clk
0:01:59]} 22... Kg8 {[%clk 0:00:19.1]} 23. Qxc5 {[%clk 0:01:56.5]} 23... a4
{[%clk 0:00:18.7]} 24. Qb4 {[%clk 0:01:50]} 24... Rfb8 {[%clk 0:00:11.5]} 25. f5
{[%clk 0:01:41.3]} 25... axb3 {[%clk 0:00:10.5]} 26. axb3 {[%clk 0:01:40.6]}
26... Nc8 {[%clk 0:00:10.8]} 27. Qxb7 {[%clk 0:01:39.2]} 27... Rxb7 {[%clk
0:00:11.7]} 28. Nb5 {[%clk 0:01:36.8]} 28... Nd6 {[%clk 0:00:09.2]} 29. Nd4
{[%clk 0:01:33.5]} 29... Nxf5 {[%clk 0:00:07.7]} 30. Nxf5 {[%clk 0:01:30.2]}
30... gxf5 {[%clk 0:00:08.6]} 31. Rc3 {[%clk 0:01:27.9]} 31... Rab8 {[%clk
0:00:04.8]} 32. Rb1 {[%clk 0:01:22.8]} 32... e5 {[%clk 0:00:04.8]} 33. Kg1
{[%clk 0:01:22.9]} 33... e4 {[%clk 0:00:04.3]} 34. g3 {[%clk 0:01:22.3]} 34...
Kg7 {[%clk 0:00:04.6]} 35. Kf2 {[%clk 0:01:21.7]} 35... Kf6 {[%clk 0:00:05]} 36.
Ke3 {[%clk 0:01:21.3]} 36... Ke5 {[%clk 0:00:05.7]} 37. c5 {[%clk 0:01:18.6]}
37... Rb4 {[%clk 0:00:05.7]} 38. c6 {[%clk 0:01:18]} 38... Rc8 {[%clk
0:00:06.3]} 39. Rd1 {[%clk 0:01:12.4]} 39... Rb6 {[%clk 0:00:05.2]} 40. c7
{[%clk 0:01:12]} 40... Rb7 {[%clk 0:00:04.9]} 41. Rdc1 {[%clk 0:01:09.8]} 41...
Kd6 {[%clk 0:00:04.7]} 42. Rd1+ {[%clk 0:00:58.5]} 42... Ke7 {[%clk 0:00:03.9]}
43. Rdc1 {[%clk 0:00:51.3]} 43... Kd7 {[%clk 0:00:03.3]} 44. Kf4 {[%clk
0:00:48.9]} 44... Rbxc7 {[%clk 0:00:02.9]} 45. Rd1+ {[%clk 0:00:40.4]} 45... Ke7
{[%clk 0:00:03.1]} 46. Rxc7+ {[%clk 0:00:37]} 46... Rxc7 {[%clk 0:00:04]} 47.
Kxf5 {[%clk 0:00:35.8]} 47... Rb7 {[%clk 0:00:04.6]} 48. Rb1 {[%clk 0:00:25.3]}
48... e3 {[%clk 0:00:04.6]} 49. Kf4 {[%clk 0:00:25.1]} 49... e2 {[%clk 0:00:05]}
50. Re1 {[%clk 0:00:25.1]} 50... Rxb3 {[%clk 0:00:05]} 51. Rxe2+ {[%clk
0:00:25.1]} 51... Kf6 {[%clk 0:00:05.7]} 52. Kg4 {[%clk 0:00:24.9]} 52... Rb4+
{[%clk 0:00:03.7]} 53. Kh3 {[%clk 0:00:25.3]} 53... Kg7 {[%clk 0:00:03.8]} 54.
Rc2 {[%clk 0:00:25.4]} 54... Rb6 {[%clk 0:00:04.3]} 55. Rc5 {[%clk 0:00:25]}
55... Rh6+ {[%clk 0:00:04.7]} 56. Kg2 {[%clk 0:00:25]} 56... Rb6 {[%clk
0:00:05.6]} 57. h4 {[%clk 0:00:24.2]} 57... Rb2+ {[%clk 0:00:06.1]} 58. Kh3
{[%clk 0:00:24.4]} 58... Rb6 {[%clk 0:00:06.5]} 59. Kg4 {[%clk 0:00:24]} 59...
Rg6+ {[%clk 0:00:06.7]} 60. Kf4 {[%clk 0:00:24.2]} 60... Rf6+ {[%clk 0:00:07.3]}
61. Rf5 {[%clk 0:00:23.6]} 61... Rc6 {[%clk 0:00:07.6]} 62. g4 {[%clk 0:00:23]}
62... h6 {[%clk 0:00:08]} 63. Re5 {[%clk 0:00:22.3]} 63... Rc4+ {[%clk 0:00:08]}
64. Re4 {[%clk 0:00:22.2]} 64... Rc6 {[%clk 0:00:08.2]} 65. h5 {[%clk
0:00:20.7]} 65... Rf6+ {[%clk 0:00:07.8]} 66. Kg3 {[%clk 0:00:20.5]} 66... Rc6
{[%clk 0:00:07.8]} 67. Kh4 {[%clk 0:00:20.7]} 67... Rc1 {[%clk 0:00:07.9]} 68.
Kg3 {[%clk 0:00:19.4]} 1/2-1/2

[Event "Early-Titled-Tuesday-Blitz-April-02-2024"]
[Site "Chess.com"]
[Date "2024.04.02"]
[Round "3"]
[White "OriTaichman"]
[Black "Nemegejas"]
[Result "0-1"]
[WhiteElo "2568"]
[BlackElo "2822"]
[TimeControl "180+1"]
[EndTime "8:29:12 PDT"]
[Termination "Nemegejas won by checkmate"]

1. e4 {[%clk 0:02:55.8]} 1... c6 {[%clk 0:02:59.8]} 2. d4 {[%clk 0:02:53.9]}
2... d5 {[%clk 0:03:00.1]} 3. e5 {[%clk 0:02:53.9]} 3... Bf5 {[%clk 0:02:59.8]}
4. Nd2 {[%clk 0:02:53.8]} 4... e6 {[%clk 0:02:57.5]} 5. Nb3 {[%clk 0:02:54]}
5... c5 {[%clk 0:02:55.3]} 6. dxc5 {[%clk 0:02:54.3]} 6... Bxc5 {[%clk
0:02:53.3]} 7. Nxc5 {[%clk 0:02:55.2]} 7... Qa5+ {[%clk 0:02:53]} 8. c3 {[%clk
0:02:55.5]} 8... Qxc5 {[%clk 0:02:53.5]} 9. Nf3 {[%clk 0:02:46.4]} 9... Qc7
{[%clk 0:02:47.5]} 10. Bf4 {[%clk 0:02:20.4]} 10... Ne7 {[%clk 0:02:39.2]} 11.
Nd4 {[%clk 0:02:14.6]} 11... O-O {[%clk 0:02:39.4]} 12. Nxf5 {[%clk 0:01:58.8]}
12... Nxf5 {[%clk 0:02:40.3]} 13. Bd3 {[%clk 0:01:59]} 13... Nc6 {[%clk
0:02:39.9]} 14. Bxf5 {[%clk 0:01:37.9]} 14... exf5 {[%clk 0:02:39.3]} 15. Qxd5
{[%clk 0:01:37.7]} 15... Rfe8 {[%clk 0:02:07]} 16. O-O-O {[%clk 0:01:12.3]}
16... Nxe5 {[%clk 0:02:00.2]} 17. Kb1 {[%clk 0:00:54.1]} 17... Kh8 {[%clk
0:01:54]} 18. Rhe1 {[%clk 0:00:52.7]} 18... f6 {[%clk 0:01:54.3]} 19. Qd6 {[%clk
0:00:25]} 19... Qxd6 {[%clk 0:00:23.3]} 20. Rxd6 {[%clk 0:00:25.9]} 20... Re7
{[%clk 0:00:14.6]} 21. Red1 {[%clk 0:00:23.3]} 21... Kg8 {[%clk 0:00:09.9]} 22.
Be3 {[%clk 0:00:19]} 22... b6 {[%clk 0:00:06.1]} 23. a4 {[%clk 0:00:18]} 23...
Kf7 {[%clk 0:00:06]} 24. Kc2 {[%clk 0:00:11.6]} 24... Nc4 {[%clk 0:00:05.9]} 25.
Rd7 {[%clk 0:00:10.3]} 25... Ne5 {[%clk 0:00:03.9]} 26. Rxe7+ {[%clk 0:00:10.2]}
26... Kxe7 {[%clk 0:00:04.8]} 27. Bd4 {[%clk 0:00:10.3]} 27... Ke6 {[%clk
0:00:04.3]} 28. Re1 {[%clk 0:00:10.4]} 28... Kd5 {[%clk 0:00:03.9]} 29. f4
{[%clk 0:00:09]} 29... Ng6 {[%clk 0:00:03.3]} 30. g3 {[%clk 0:00:08.8]} 30...
Kd6 {[%clk 0:00:03.1]} 31. b4 {[%clk 0:00:08.3]} 31... Kd7 {[%clk 0:00:03]} 32.
b5 {[%clk 0:00:08.3]} 32... Ne7 {[%clk 0:00:01.9]} 33. Kd3 {[%clk 0:00:08.4]}
33... Nc8 {[%clk 0:00:02.4]} 34. c4 {[%clk 0:00:08.7]} 34... Nd6 {[%clk
0:00:03.3]} 35. c5 {[%clk 0:00:08.9]} 35... bxc5 {[%clk 0:00:03.4]} 36. Bxc5
{[%clk 0:00:09.8]} 36... Ne4 {[%clk 0:00:04.3]} 37. Bb4 {[%clk 0:00:08.7]} 37...
a6 {[%clk 0:00:03.8]} 38. Rb1 {[%clk 0:00:07.5]} 38... axb5 {[%clk 0:00:04]} 39.
axb5 {[%clk 0:00:08.4]} 39... Rb8 {[%clk 0:00:04.8]} 40. Be1 {[%clk 0:00:07.9]}
40... Kd6 {[%clk 0:00:02.8]} 41. g4 {[%clk 0:00:08]} 41... g6 {[%clk 0:00:01.9]}
42. gxf5 {[%clk 0:00:08.4]} 42... gxf5 {[%clk 0:00:02.8]} 43. Kc4 {[%clk
0:00:07.4]} 43... Rc8+ {[%clk 0:00:03.4]} 44. Kd4 {[%clk 0:00:07.5]} 44... Rb8
{[%clk 0:00:01.9]} 45. Bb4+ {[%clk 0:00:06.8]} 45... Ke6 {[%clk 0:00:02.6]} 46.
Ba3 {[%clk 0:00:07.1]} 46... Rb7 {[%clk 0:00:02.3]} 47. b6 {[%clk 0:00:05.7]}
47... Kd7 {[%clk 0:00:02.9]} 48. Kd5 {[%clk 0:00:05.6]} 48... Nc3+ {[%clk
0:00:03.3]} 49. Kc5 {[%clk 0:00:05.5]} 49... Nxb1 {[%clk 0:00:04.2]} 50. Bb4
{[%clk 0:00:05.7]} 50... h5 {[%clk 0:00:03.8]} 51. h4 {[%clk 0:00:05.5]} 51...
Rb8 {[%clk 0:00:04.5]} 52. Kb5 {[%clk 0:00:05.5]} 52... Rb7 {[%clk 0:00:02.2]}
53. Kc5 {[%clk 0:00:05.1]} 53... Kc8 {[%clk 0:00:03.1]} 54. Kc6 {[%clk
0:00:05.4]} 54... Rd7 {[%clk 0:00:03.1]} 55. Kb5 {[%clk 0:00:04.3]} 55... Kb7
{[%clk 0:00:02.5]} 56. Kc5 {[%clk 0:00:04.9]} 56... Rd3 {[%clk 0:00:02.7]} 57.
Kc4 {[%clk 0:00:05.1]} 57... Rf3 {[%clk 0:00:03.1]} 58. Kb5 {[%clk 0:00:04.9]}
58... Rxf4 {[%clk 0:00:03.3]} 59. Bd6 {[%clk 0:00:05.2]} 59... Rxh4 {[%clk
0:00:03.7]} 60. Bc7 {[%clk 0:00:05.3]} 60... Re4 {[%clk 0:00:04.1]} 61. Kc5
{[%clk 0:00:05.7]} 61... h4 {[%clk 0:00:05]} 62. Kd5 {[%clk 0:00:06.3]} 62... h3
{[%clk 0:00:05.9]} 63. Kc5 {[%clk 0:00:05.8]} 63... Nc3 {[%clk 0:00:06.4]} 64.
Kd6 {[%clk 0:00:05.7]} 64... Ne2 {[%clk 0:00:07.3]} 65. Kd7 {[%clk 0:00:06.2]}
65... f4 {[%clk 0:00:07]} 66. Kd6 {[%clk 0:00:04.8]} 66... h2 {[%clk 0:00:07.5]}
67. Kd5 {[%clk 0:00:05.7]} 67... h1=Q {[%clk 0:00:07.4]} 68. Kc5 {[%clk
0:00:05.8]} 68... Qc1+ {[%clk 0:00:06.8]} 69. Kd6 {[%clk 0:00:06.1]} 69... Qc6#
{[%clk 0:00:07.1]} 0-1

[Event "Early-Titled-Tuesday-Blitz-April-02-2024"]
[Site "Chess.com"]
[Date "2024.04.02"]
[Round "3"]
[White "kritipatel"]
[Black "Rosh1610"]
[Result "1-0"]
[WhiteElo "2265"]
[BlackElo "2460"]
[TimeControl "180+1"]
[EndTime "8:29:22 PDT"]
[Termination "kritipatel won by checkmate"]

1. e4 {[%clk 0:03:00.9]} 1... c5 {[%clk 0:02:56.6]} 2. d4 {[%clk 0:03:00.9]}
2... cxd4 {[%clk 0:02:56.9]} 3. c3 {[%clk 0:03:01.5]} 3... d3 {[%clk 0:02:57.1]}
4. Bxd3 {[%clk 0:03:01.3]} 4... Nc6 {[%clk 0:02:56.8]} 5. Nf3 {[%clk 0:03:01.9]}
5... g6 {[%clk 0:02:57]} 6. c4 {[%clk 0:03:02.4]} 6... Bg7 {[%clk 0:02:57.4]} 7.
O-O {[%clk 0:03:03.1]} 7... d6 {[%clk 0:02:57.6]} 8. Nc3 {[%clk 0:03:03.6]} 8...
Nf6 {[%clk 0:02:57.8]} 9. h3 {[%clk 0:03:03.3]} 9... O-O {[%clk 0:02:58.1]} 10.
Qe2 {[%clk 0:03:03.9]} 10... Bd7 {[%clk 0:02:56.9]} 11. Rd1 {[%clk 0:03:04.3]}
11... Rc8 {[%clk 0:02:52.7]} 12. Bf4 {[%clk 0:02:55.6]} 12... a6 {[%clk
0:02:52.6]} 13. Rac1 {[%clk 0:02:56.1]} 13... Nb4 {[%clk 0:02:50.1]} 14. Bb1
{[%clk 0:02:54.6]} 14... Nh5 {[%clk 0:02:42]} 15. Bh2 {[%clk 0:02:40.8]} 15...
Bh6 {[%clk 0:02:22.8]} 16. Nd2 {[%clk 0:02:30.7]} 16... Be6 {[%clk 0:02:21.9]}
17. b3 {[%clk 0:02:25.7]} 17... b5 {[%clk 0:02:00.6]} 18. cxb5 {[%clk
0:02:18.5]} 18... axb5 {[%clk 0:02:01.5]} 19. Qxb5 {[%clk 0:02:17.6]} 19... Rb8
{[%clk 0:02:01.1]} 20. Qe2 {[%clk 0:02:11.5]} 20... Qa5 {[%clk 0:01:57.3]} 21.
Rf1 {[%clk 0:02:00.6]} 21... Rfc8 {[%clk 0:01:56.8]} 22. f4 {[%clk 0:01:57.4]}
22... Nc6 {[%clk 0:01:13.8]} 23. f5 {[%clk 0:01:48.8]} 23... Nd4 {[%clk
0:01:13.6]} 24. Qd3 {[%clk 0:01:42.2]} 24... Rxc3 {[%clk 0:01:12.9]} 25. Rxc3
{[%clk 0:01:05.3]} 25... Qxc3 {[%clk 0:01:11]} 26. Qxc3 {[%clk 0:01:01.6]} 26...
Ne2+ {[%clk 0:01:10.7]} 27. Kh1 {[%clk 0:00:58.7]} 27... Nxc3 {[%clk 0:01:11.6]}
28. fxe6 {[%clk 0:00:58.6]} 28... Bxd2 {[%clk 0:01:10.6]} 29. exf7+ {[%clk
0:00:55.9]} 29... Kg7 {[%clk 0:01:09.5]} 30. e5 {[%clk 0:00:55]} 30... Bf4
{[%clk 0:00:36.8]} 31. Bxf4 {[%clk 0:00:22.3]} 31... Nxf4 {[%clk 0:00:37.7]} 32.
Rxf4 {[%clk 0:00:15.4]} 32... Nxb1 {[%clk 0:00:36]} 33. e6 {[%clk 0:00:16]}
33... Kf8 {[%clk 0:00:34.8]} 34. b4 {[%clk 0:00:16.2]} 34... Nc3 {[%clk
0:00:32.5]} 35. a3 {[%clk 0:00:15.7]} 35... Nd5 {[%clk 0:00:28.7]} 36. Rc4
{[%clk 0:00:14.2]} 36... Kg7 {[%clk 0:00:23.2]} 37. Kg1 {[%clk 0:00:13.9]} 37...
Kf6 {[%clk 0:00:22.2]} 38. Re4 {[%clk 0:00:12.9]} 38... Rf8 {[%clk 0:00:20.2]}
39. b5 {[%clk 0:00:12.4]} 39... Nc7 {[%clk 0:00:18.2]} 40. b6 {[%clk 0:00:11.7]}
40... Nxe6 {[%clk 0:00:18.4]} 41. b7 {[%clk 0:00:12]} 41... Kxf7 {[%clk
0:00:13.7]} 42. a4 {[%clk 0:00:12.1]} 42... Rb8 {[%clk 0:00:13.5]} 43. Rb4
{[%clk 0:00:09.7]} 43... Nc5 {[%clk 0:00:14]} 44. a5 {[%clk 0:00:10.2]} 44...
Rxb7 {[%clk 0:00:14.9]} 45. Rxb7 {[%clk 0:00:09.4]} 45... Nxb7 {[%clk
0:00:15.2]} 46. a6 {[%clk 0:00:10]} 46... Nc5 {[%clk 0:00:13.1]} 47. a7 {[%clk
0:00:10.6]} 47... Nd7 {[%clk 0:00:13.4]} 48. a8=Q {[%clk 0:00:11]} 48... Nf6
{[%clk 0:00:14.3]} 49. Qf3 {[%clk 0:00:11.1]} 49... Kg7 {[%clk 0:00:14.7]} 50.
Kf2 {[%clk 0:00:11.7]} 50... Kf7 {[%clk 0:00:15.3]} 51. Ke3 {[%clk 0:00:12.4]}
51... d5 {[%clk 0:00:15.8]} 52. Kd4 {[%clk 0:00:11.2]} 52... Ke6 {[%clk
0:00:15.4]} 53. g4 {[%clk 0:00:11.6]} 53... Kd6 {[%clk 0:00:15.6]} 54. g5 {[%clk
0:00:11.9]} 54... Ne4 {[%clk 0:00:15.3]} 55. Qf4+ {[%clk 0:00:12.4]} 55... Kd7
{[%clk 0:00:15.1]} 56. Kxd5 {[%clk 0:00:11]} 56... Nd6 {[%clk 0:00:14.8]} 57.
Qg4+ {[%clk 0:00:11.3]} 57... Nf5 {[%clk 0:00:15.1]} 58. Ke5 {[%clk 0:00:11.1]}
58... Ke8 {[%clk 0:00:15.3]} 59. h4 {[%clk 0:00:11.7]} 59... Kf7 {[%clk
0:00:15.3]} 60. h5 {[%clk 0:00:12.2]} 60... Kg7 {[%clk 0:00:15.5]} 61. h6+
{[%clk 0:00:12.2]} 61... Kf7 {[%clk 0:00:15.8]} 62. Qc4+ {[%clk 0:00:12.8]}
62... Kf8 {[%clk 0:00:16.2]} 63. Qc8+ {[%clk 0:00:13.1]} 63... Kf7 {[%clk
0:00:16.7]} 64. Qh8 {[%clk 0:00:13.3]} 64... Nd6 {[%clk 0:00:14.5]} 65. Qxh7+
{[%clk 0:00:13.5]} 65... Ke8 {[%clk 0:00:15.4]} 66. Qxg6+ {[%clk 0:00:14]} 66...
Kf8 {[%clk 0:00:16.3]} 67. h7 {[%clk 0:00:14.6]} 67... Nf7+ {[%clk 0:00:16.8]}
68. Ke6 {[%clk 0:00:14.2]} 68... Ke8 {[%clk 0:00:16.6]} 69. h8=Q# {[%clk
0:00:14.1]} 1-0

[Event "Early-Titled-Tuesday-Blitz-April-02-2024"]
[Site "Chess.com"]
[Date "2024.04.02"]
[Round "3"]
[White "SharathRk6"]
[Black "masnyszachistaaa"]
[Result "1/2-1/2"]
[WhiteElo "2408"]
[BlackElo "2602"]
[TimeControl "180+1"]
[EndTime "8:29:25 PDT"]
[Termination "Game drawn - insufficient material"]

1. e4 {[%clk 0:03:00.9]} 1... g6 {[%clk 0:02:51.5]} 2. d4 {[%clk 0:02:59.9]}
2... Bg7 {[%clk 0:02:51.7]} 3. Nf3 {[%clk 0:03:00.1]} 3... c6 {[%clk 0:02:50.3]}
4. Nc3 {[%clk 0:02:59.9]} 4... d5 {[%clk 0:02:50.4]} 5. e5 {[%clk 0:03:00]} 5...
Nh6 {[%clk 0:02:29.2]} 6. h3 {[%clk 0:02:58.8]} 6... f6 {[%clk 0:02:23]} 7. Bf4
{[%clk 0:02:44.7]} 7... O-O {[%clk 0:02:19.8]} 8. Qd2 {[%clk 0:02:44]} 8... Nf7
{[%clk 0:02:20]} 9. O-O-O {[%clk 0:02:42.7]} 9... a5 {[%clk 0:02:04.2]} 10. h4
{[%clk 0:02:10.3]} 10... Bg4 {[%clk 0:02:02.2]} 11. exf6 {[%clk 0:02:00.1]}
11... exf6 {[%clk 0:02:01]} 12. Bd3 {[%clk 0:01:59.9]} 12... Na6 {[%clk
0:01:53.9]} 13. h5 {[%clk 0:01:58.7]} 13... g5 {[%clk 0:01:46.5]} 14. Bg3 {[%clk
0:01:49.7]} 14... Nd6 {[%clk 0:01:38.6]} 15. h6 {[%clk 0:01:46.3]} 15... Bh8
{[%clk 0:01:37.9]} 16. Nxg5 {[%clk 0:01:22.5]} 16... fxg5 {[%clk 0:01:22.7]} 17.
Bxd6 {[%clk 0:01:21.4]} 17... Bxd1 {[%clk 0:01:20.2]} 18. Bxf8 {[%clk
0:01:17.3]} 18... Kxf8 {[%clk 0:01:07.6]} 19. Qxd1 {[%clk 0:01:08.3]} 19... Qc7
{[%clk 0:01:00.9]} 20. Qf3+ {[%clk 0:01:06.6]} 20... Qf4+ {[%clk 0:01:00.5]} 21.
Qxf4+ {[%clk 0:01:06.6]} 21... gxf4 {[%clk 0:01:01.4]} 22. Ne2 {[%clk
0:01:03.3]} 22... Kg8 {[%clk 0:00:58.1]} 23. Rh4 {[%clk 0:00:59.9]} 23... Bf6
{[%clk 0:00:56.6]} 24. Rg4+ {[%clk 0:00:55]} 24... Kh8 {[%clk 0:00:56.9]} 25.
Nxf4 {[%clk 0:00:49.6]} 25... Nb4 {[%clk 0:00:57.1]} 26. c3 {[%clk 0:00:49.1]}
26... Nxd3+ {[%clk 0:00:41.7]} 27. Nxd3 {[%clk 0:00:48.4]} 27... Re8 {[%clk
0:00:39.1]} 28. Kd2 {[%clk 0:00:45.6]} 28... Re6 {[%clk 0:00:29.4]} 29. Nc5
{[%clk 0:00:26.4]} 29... Re7 {[%clk 0:00:29.4]} 30. f4 {[%clk 0:00:24.5]} 30...
Rf7 {[%clk 0:00:25.2]} 31. Rg3 {[%clk 0:00:20.5]} 31... b6 {[%clk 0:00:19.9]}
32. Nd3 {[%clk 0:00:20.6]} 32... Be7 {[%clk 0:00:19.3]} 33. Rf3 {[%clk
0:00:20.9]} 33... Bf8 {[%clk 0:00:19.1]} 34. g4 {[%clk 0:00:20.4]} 34... Bxh6
{[%clk 0:00:19.2]} 35. Ke3 {[%clk 0:00:19.7]} 35... Bg7 {[%clk 0:00:12.2]} 36.
f5 {[%clk 0:00:19.2]} 36... Bh6+ {[%clk 0:00:11.5]} 37. Nf4 {[%clk 0:00:18.7]}
37... Re7+ {[%clk 0:00:11.3]} 38. Kd3 {[%clk 0:00:19.3]} 38... Re1 {[%clk
0:00:09.8]} 39. Ne6 {[%clk 0:00:14.9]} 39... Kg8 {[%clk 0:00:06.9]} 40. g5
{[%clk 0:00:14.7]} 40... Bf8 {[%clk 0:00:05.5]} 41. g6 {[%clk 0:00:14.1]} 41...
hxg6 {[%clk 0:00:02.7]} 42. Nxf8 {[%clk 0:00:13.9]} 42... Kxf8 {[%clk
0:00:02.7]} 43. fxg6+ {[%clk 0:00:14.4]} 43... Kg7 {[%clk 0:00:03.4]} 44. Rg3
{[%clk 0:00:13.3]} 44... Re6 {[%clk 0:00:03.4]} 45. b3 {[%clk 0:00:11]} 45...
Rxg6 {[%clk 0:00:03.8]} 46. Re3 {[%clk 0:00:11.2]} 46... Kf7 {[%clk 0:00:04.1]}
47. c4 {[%clk 0:00:10.9]} 47... Re6 {[%clk 0:00:04.1]} 48. Rf3+ {[%clk
0:00:10.6]} 48... Ke7 {[%clk 0:00:03.9]} 49. Rh3 {[%clk 0:00:10.5]} 49... Kd7
{[%clk 0:00:04.1]} 50. Kc3 {[%clk 0:00:10.9]} 50... Kd6 {[%clk 0:00:04.5]} 51.
Rg3 {[%clk 0:00:10]} 51... Rf6 {[%clk 0:00:04.7]} 52. a3 {[%clk 0:00:09.7]}
52... Rh6 {[%clk 0:00:04.9]} 53. Rf3 {[%clk 0:00:09.7]} 53... Rg6 {[%clk
0:00:05.1]} 54. Re3 {[%clk 0:00:09.9]} 54... Rh6 {[%clk 0:00:05.4]} 55. Rf3
{[%clk 0:00:10.3]} 55... Rg6 {[%clk 0:00:05.8]} 56. Re3 {[%clk 0:00:09.1]} 56...
c5 {[%clk 0:00:05.5]} 57. dxc5+ {[%clk 0:00:08.3]} 57... bxc5 {[%clk 0:00:03.3]}
58. cxd5 {[%clk 0:00:08.3]} 58... Kxd5 {[%clk 0:00:04.2]} 59. Rd3+ {[%clk
0:00:08.6]} 59... Kc6 {[%clk 0:00:04.3]} 60. Re3 {[%clk 0:00:07.7]} 60... Rh6
{[%clk 0:00:04.6]} 61. a4 {[%clk 0:00:07.5]} 61... Rg6 {[%clk 0:00:04.6]} 62.
Rf3 {[%clk 0:00:08]} 62... Rh6 {[%clk 0:00:04.4]} 63. Rg3 {[%clk 0:00:06.6]}
63... Rf6 {[%clk 0:00:04.3]} 64. Rh3 {[%clk 0:00:06.7]} 64... Kd5 {[%clk
0:00:04.5]} 65. Rh5+ {[%clk 0:00:06.6]} 65... Kd6 {[%clk 0:00:05.1]} 66. Rh3
{[%clk 0:00:06.4]} 66... Rf5 {[%clk 0:00:05.5]} 67. Kc4 {[%clk 0:00:06.3]} 67...
Rf4+ {[%clk 0:00:05.3]} 68. Kb5 {[%clk 0:00:06.9]} 68... Kd5 {[%clk 0:00:03.7]}
69. Kxa5 {[%clk 0:00:06.8]} 69... c4 {[%clk 0:00:04]} 70. bxc4+ {[%clk
0:00:05.9]} 70... Kxc4 {[%clk 0:00:03.6]} 71. Kb6 {[%clk 0:00:05.3]} 71... Rf6+
{[%clk 0:00:03.9]} 72. Kb7 {[%clk 0:00:05.6]} 72... Kb4 {[%clk 0:00:03.7]} 73.
Rh4+ {[%clk 0:00:06]} 73... Ka5 {[%clk 0:00:04.1]} 74. Kc7 {[%clk 0:00:06.1]}
74... Rf3 {[%clk 0:00:03.5]} 75. Kd6 {[%clk 0:00:06.4]} 75... Ra3 {[%clk
0:00:03]} 76. Ke5 {[%clk 0:00:06.7]} 76... Rxa4 {[%clk 0:00:03.4]} 77. Rxa4+
{[%clk 0:00:07.2]} 77... Kxa4 {[%clk 0:00:04.3]} 1/2-1/2